Cogmind - Beta 9.2 @@@ ROGUE MODE // 2019.11.18 @ 17:15:56 Player: Aaron Result: Destroyed by Y-45 Defender with Heavy Assault Rifle Performance ------------- Evolutions (1) 500 Regions Visited (2) 400 Robots Destroyed (22) 110 Value Destroyed (345) 345 Prototype IDs (4) 80 Alien Tech Used (0) 0 Bonus (0) 0 TOTAL SCORE: 1435 Bonus ------- None Cogmind --------- Core Integrity 0/400 Matter 261/300 Energy 0/100 System Corruption 0% Temperature Cool (6) Movement Core (300) Ox5 Location -9/Materials Parts ------- > --- POWER (1) -------- (None) > --- PROPULSION (2) --- (None) > --- UTILITY (4) ------ Large Storage Unit Shield Generator > --- WEAPON (2) ------- (None) > --- INVENTORY (10) --- Beam Cannon Peak State ------------ > --- POWER ------------ Improved Ion Engine > --- PROPULSION ------- Compact Wheel Compact Wheel > --- UTILITY ---------- Large Storage Unit Terrain Scan Processor Light Armor Plating Shield Generator > --- WEAPON ----------- Spread Laser Particle Cannon > --- INVENTORY -------- Light Ion Engine Wheel Wheel Heat Sink Shield Generator Small Laser Beam Cannon Beam Cannon Beam Cannon [Rating: 15] Favorites ----------- Power Ion Engine Engine Ion Engine Propulsion Wheel Wheel Wheel Utility Large Storage Unit Device Shield Generator Storage Large Storage Unit Processor Terrain Scan Processor Hackware Hacking Suite Protection Light Armor Plating Weapon Mining Laser Energy Gun Spread Laser Energy Cannon Particle Cannon Ballistic Gun Light Assault Rifle Special Weapon Mining Laser Build | -11 -10 -9 ------- Run | Scr Mat Mat Slots Evolved 2 | . . 2 Power . | . . . Propulsion . | . . . Utility 2 | . . 2 Weapon . | . . . Parts Attached 44 | 10 5 29 Power 5 | 1 . 4 Engine 5 | 1 . 4 Core . | . . . Reactor . | . . . Propulsion 8 | 3 . 5 Treads . | . . . Leg . | . . . Wheel 8 | 3 . 5 Hover . | . . . Flight . | . . . Utility 14 | 4 4 6 Device 7 | 2 1 4 Storage 3 | 1 2 . Processor 2 | 1 . 1 Hackware 1 | . 1 . Protection 1 | . . 1 Artifact . | . . . Weapon 17 | 2 1 14 Energy Gun 4 | 1 . 3 Energy Cannon 7 | . . 7 Ballistic Gun 2 | 1 1 . Ballistic Cannon . | . . . Launcher . | . . . Special Weapon 4 | . . 4 Impact Weapon . | . . . Slashing Weapon . | . . . Piercing Weapon . | . . . Special Melee Weapon . | . . . Unidentified Prototypes . | . . . Parts Lost 21 | . . 21 Power 3 | . . 3 Propulsion 6 | . . 6 Utility 4 | . . 4 Weapon 8 | . . 8 Highest Loss Streak 13 | . . 13 Average Slot Usage (%) 91 | . 100 90 Engine 10 | . 14 10 Wheel 22 | . 28 21 Device 14 | . 13 14 Storage 11 | . 14 11 Processor 6 | . . 7 Protection 3 | . . 4 Energy Gun 4 | . 3 5 Energy Cannon 6 | . . 8 Ballistic Gun 5 | . 24 1 Special Weapon 4 | . . 6 Naked Turns . | . . . Heaviest Build 35 | 12 25 35 Greatest Support 32 | 26 20 32 Greatest Overweight (x) 7 | . 1 7 Average Overweight (x) . | . . . Largest Inventory Capacity 10 | 6 10 10 Average Capacity 9 | 5 8 10 Most Carried 9 | 6 8 9 Average Carried 6 | 3 6 6 Final Capacity 10 | 6 10 10 Final Carried 7 | 6 7 1 Class Distribution -------------------- 52% | Mutant 47% | Scavenger-Mutant Dominant Class ---------------- Mutant | -10/Materials Scavenger-Mutant | -9/Materials Resources | -11 -10 -9 ----------- Run | Scr Mat Mat Matter Collected 557 | 301 96 160 Remotely . | . . . Salvage Created 561 | 168 137 256 Parts 62 | 28 15 19 Haulers Intercepted 1 | . 1 . Recyclers Shooed 1 | . 1 . Parts Field Recycled . | . . . Retrieved Matter . | . . . Parts Self-Destructed . | . . . Prevented . | . . . Kills | -11 -10 -9 ------- Run | Scr Mat Mat Combat Hostiles Destroyed 8 | . 3 5 Guns 5 | . 3 2 Cannons 3 | . . 3 Classes Destroyed 10 | 3 4 3 Worker 2 | 2 . . Builder 1 | . 1 . Tunneler 5 | 5 . . Hauler 1 | . 1 . Recycler 3 | 1 . 2 Operator 1 | . 1 . Watcher 1 | . . 1 Swarmer 3 | . 3 . Grunt 4 | . . 4 Sentry 1 | . . 1 Best Kill Streak 8 | 8 3 4 Combat Bots Only 4 | . 3 4 Max Kills in Single Turn 1 | 1 1 1 Gunslinging . | . . . Exploded . | . . . Melee . | . . . Uniques/NPCs Destroyed . | . . . Combat | -11 -10 -9 -------- Run | Scr Mat Mat Damage Taken 1636 | . 138 1498 Core 412 | . 11 401 Absorbed by Shields 144 | . . 144 Core Remaining (%) 97 | 100 95 . Volleys Fired 77 | 28 17 32 Largest 2 | 2 2 2 Hottest 200 | 60 40 200 Shots Fired 122 | 29 32 61 Gun 82 | 29 32 21 Cannon 32 | . . 32 Launcher . | . . . Special 8 | . . 8 Kinetic 31 | 1 30 . Thermal 91 | 28 2 61 Explosive . | . . . Electromagnetic . | . . . Robot Hit Streak 9 | 4 5 9 Robot Miss Streak 5 | 3 3 5 Penetration Max . | . . . Secondary Targets . | . . . Shots Hit Robots 71 | 17 14 40 Core Hits 46 | 9 9 28 Critical Hits 1 | . 1 . Critical Kills 1 | . 1 . Critical Parts Destroyed . | . . . Melee Attacks . | . . . Impact . | . . . Slashing . | . . . Piercing . | . . . Sneak Attacks . | . . . Combat Hostiles . | . . . Follow-up Attacks . | . . . Damage Inflicted 977 | 216 202 559 Guns 621 | 216 202 203 Cannons 188 | . . 188 Explosions . | . . . Melee . | . . . Ramming . | . . . Kinetic 180 | . 180 . Thermal 797 | 216 22 559 Explosive . | . . . Electromagnetic . | . . . Impact . | . . . Slashing . | . . . Piercing . | . . . Highest Corruption 1 | . 1 . Average Corruption 1 | . 1 . Corruption Purged . | . . . Overload Shots . | . . . Overflow Damage 1 | . . 1 Projectiles 1 | . . 1 Explosions . | . . . Melee . | . . . Knockbacks . | . . . Impact . | . . . Kinetic . | . . . Secondary . | . . . Self-Inflicted Damage . | . . . Shots . | . . . Rammed . | . . . Targets Rammed . | . . . Kicked . | . . . Crushed . | . . . Highest Temperature 517 | 20 . 517 Average Temperature 124 | 18 . 128 Received Heat Transfer 608 | . . 608 Effects 8 | . . 8 Shutdowns 2 | . . 2 Energy Bleed 2 | . . 2 Interference 1 | . . 1 Short Circuit 1 | . . 1 Damage (major) 2 | . . 2 Siege Activations . | . . . Robots Corrupted . | . . . Combat Hostiles . | . . . Parts Fried . | . . . Impact Corruptions . | . . . Robots Melted . | . . . Combat Hostiles . | . . . Parts Melted 1 | 1 . . Heat Transferred 1525 | 500 50 975 Parts Sabotaged . | . . . Parts Stolen . | . . . Parts Stripped . | . . . Power Chain Reactions . | . . . Missiles Intercepted . | . . . Alert | -11 -10 -9 ------- Run | Scr Mat Mat Peak Influence 217 | 40 148 217 Average Influence 79 | 16 95 85 Maximum Alert Level 1 | . . 1 Low Security (%) 97 | 100 100 96 Level 1 2 | . . 3 Level 2 . | . . . Level 3 . | . . . Level 4 . | . . . Level 5 . | . . . High Security . | . . . Max Security . | . . . Squads Dispatched 7 | . 1 6 Investigation 3 | . . 3 Extermination . | . . . Reinforcement 4 | . 1 3 Assault . | . . . Garrison . | . . . Intercept . | . . . Construction Impeded 1 | . . 1 Haulers Reinforced . | . . . Stealth | -11 -10 -9 --------- Run | Scr Mat Mat Distress Signals . | . . . Communications Jammed . | . . . Distress Signals . | . . . Times Spotted 24 | . 5 19 Peak Tracking Total 8 | . 3 8 Tactical Retreats 1 | . . 1 Traps | -11 -10 -9 ------- Run | Scr Mat Mat Traps Triggered 2 | . 1 1 Indirectly . | . . . Trap Hack Attempts . | . . . Triggered . | . . . Disarmed . | . . . Reprogrammed . | . . . Reused . | . . . Traps Extracted . | . . . Installed . | . . . Triggered . | . . . Machines | -11 -10 -9 ---------- Run | Scr Mat Mat Machines Disabled 4 | . . 4 Max in Single Turn 1 | . . 1 Machines Sabotaged . | . . . Garrisons Compromised . | . . . Overloaded Fab Kills . | . . . Fab Network Shutdowns . | . . . Hacking | -11 -10 -9 --------- Run | Scr Mat Mat Machines Accessed 6 | . 2 4 Terminals 4 | . 1 3 Fabricators . | . . . Repair Stations . | . . . Recycling Units 1 | . 1 . Scanalyzers 1 | . . 1 Garrison Access . | . . . Total Hacks 14 | . 4 10 Successful 4 | . 1 3 Failed 10 | . 3 7 Catastrophic 5 | . . 5 Database Lockouts . | . . . Manual . | . . . Terminals 10 | . 2 8 Fabricators . | . . . Repair Stations . | . . . Recycling Units 2 | . 2 . Scanalyzers 2 | . . 2 Garrison Access . | . . . Terminal Hacks 2 | . 1 1 Prototype ID Bank 2 | . 1 1 Fabricator Hacks . | . . . Repair Station Hacks . | . . . Recycling Unit Hacks . | . . . Scanalyzer 2 | . . 2 Insert Component 1 | . . 1 Analyze 1 | . . 1 Garrison Access Hacks . | . . . Unauthorized Hacks . | . . . Terminals . | . . . Fabricators . | . . . Repair Stations . | . . . Recycling Units . | . . . Scanalyzers . | . . . Garrison Access . | . . . Data Cores Recovered . | . . . Used . | . . . Hacking Detections 5 | . 2 3 Full Trace Events 3 | . . 3 Feedback Events . | . . . Feedback Blocked . | . . . Robot Schematics Acquired . | . . . Robots Built . | . . . Matter . | . . . Time . | . . . Total Robot Build Rating . | . . . Part Schematics Acquired 1 | . . 1 Parts Built . | . . . Matter . | . . . Time . | . . . Total Part Build Rating . | . . . Parts Repaired . | . . . Time . | . . . Parts Recycled . | . . . Recycled Matter . | . . . Retrieved Matter . | . . . Retrieved Components . | . . . Parts Scanalyzed 1 | . . 1 Part Schematics Acquired 1 | . . 1 Parts Damaged . | . . . Bothacking | -11 -10 -9 ------------ Run | Scr Mat Mat Used RIF Installer . | . . . Robots Hacked . | . . . Non-combat . | . . . Combat . | . . . Robot Hacks Applied . | . . . Relay Couplers Released . | . . . Robots Rewired . | . . . Allies Hacked . | . . . Hacks Repelled . | . . . Allies | -11 -10 -9 -------- Run | Scr Mat Mat Total Allies . | . . . Largest Group . | . . . Highest-Rated Group . | . . . Highest-Rated Ally . | . . . Total Orders . | . . . Ally Attacks . | . . . Total Damage . | . . . Kills . | . . . Allies Corrupted . | . . . Allies Melted . | . . . Intel | -11 -10 -9 ------- Run | Scr Mat Mat Robot Analysis Total . | . . . Derelict Logs Recovered . | . . . Drone Launches . | . . . Drone Recoveries . | . . . Exploration | -11 -10 -9 ------------- Run | Scr Mat Mat Turns Passed 1323 | 138 206 979 Spaces Moved 773 | 75 178 520 Core 25 | 19 . 6 Treads . | . . . Legs . | . . . Wheels 748 | 56 178 514 Hover . | . . . Flight . | . . . Fastest Speed 50 | 50 80 80 Average Speed 94 | 75 84 100 Slowest Speed 400 | 90 90 400 Overloaded Moves . | . . . Propulsion Burnouts . | . . . Robots Hopped . | . . . Cave-ins Triggered . | . . . Exploration Rate (%) 20 | 5 34 23 Regions Visited 2 Branch Regions . Pre-discovered Areas . | . . . Known Exits Taken . | . . . Unknown Exits Taken 2 | 1 1 . Scrap Searched . | . . . Spaces Dug . | . . . Terrain Destroyed 29 | . . 29 Melee . | . . . Projectile 1 | . . 1 AOE 28 | . . 28 Actions | -11 -10 -9 --------- Run | Scr Mat Mat Total 1228 | 126 205 897 Wait 297 | . . 297 Move 771 | 74 177 520 Hop . | . . . Pick Up 29 | 12 3 14 Fast Attach 3 | 3 . . Attach 26 | 6 1 19 Detach 2 | . 1 1 Swap 15 | 1 4 10 Drop 8 | 2 2 4 Fire 77 | 28 17 32 Melee . | . . . Ram . | . . . Kick . | . . . Crush . | . . . Escape Stasis . | . . . Rewire . | . . . Trap . | . . . Miscellaneous . | . . . Route ------- -11/Scrapyard -10/Materials -9/Materials History --------- Turn | Location | Event 13 | -11/Scrapyard | Discovered new exit (range 16) 139 | -11/Scrapyard | Entered Materials 292 | -10/Materials | Discovered new exit (range 7) 301 | -10/Materials | Build established: Mutant 345 | -10/Materials | Entered another Materials area 345 | -9/Materials | Evolved 2 slots: Utility x2 751 | -9/Materials | Lost 6 parts (1p2n1u2w) 1187 | -9/Materials | Build established: Scavenger-Mutant 1294 | -9/Materials | Core integrity fell below 50% 1308 | -9/Materials | Core integrity fell below 20% 1324 | -9/Materials | Destroyed by Y-45 Defender with Heavy Assault Rifle Last Messages --------------- 01269_ G-34 Mercenary destroyed. 01273_ Beam Cannon destroyed. 01274_ Lgt. Armor Plating destroyed. 01276_ Imp. Ion Engine destroyed. 01276_ Com. Wheel destroyed. 01278_ Beam Cannon destroyed. 01285_ Wheel destroyed. 01287_ R-06 Scavenger collects Ion Engine. 01290_ R-06 Scavenger collects Aluminum Leg. 01295_ ALERT: Hostiles spotted, dispatching reinforcements to Terminal M001. 01302_ Wheel destroyed. 01312_ T-07 Excavator is excavating. 01312_ Heat Sink destroyed. 01316_ T-07 Excavator is excavating. 01317_ Spread Laser destroyed. 01319_ U-05 Engineer lays Concrete. 01319_ Sml. Laser destroyed. 01320_ U-05 Engineer destroyed. 01320_ K-01 Serf collects debris. Map ----- +----------------------------------------------------+ | | | | | | | | | | | | | | | | | ??????????????????????????????????????????? | | ??????????????????????????????????????????? | | #?#???????????????????????????????????????? | | ??#???#???????????????????????????????????? | | ??#??????#????????????????????????????????? | | ?##?????#?????????????????????????????????? | | ?#?#?##???????????????????????????????????? | | ??##?#??#?????????????????????????????????? | | ?##??#??#?????????????????????????????????? | | ??###??#???#??????????????????????????????? | | ???##?????????????????????????????????????? | | #????#????????????????????????????????????? | | ##???##??????#????????????????????????????? | | ##??????##??##??#?????????????????????????? | | ###?#???????#?????????????????????????????? | | ###??#??????#?????????????????????????????? | | ############################# #???????????? | | kgg @ ####????????? | | =*g Y u o ????? | | =ggg #????? | | ####/##################### """"" #????? | | !# #???????????????? ""T""??#????? | | !# """" #????????????????? ????????? | | !## """" #?????????????????? ???????? | | ### "" ##??????????????????== ???????? | | ### = #????????????????????[ ??????? | | ?## % #????????????????????? ?????? | | ### ##???????????????????? ?????? | | ### T" #?????????????????????? ?????? | | ### #??????????????????????????????? | | #?##########??????????????????????????????? | | #?#???##??????????????????????????????????? | | ?? ????#??????????????????????????????????? | | ??????????????????????????????????????????? | | "?? ??????????????????????????????????????? | | ??????????????????????????????????????????? | | ??????????????????????????????????????????? | | ??????????????????????????????????????????? | | ??????????????????????????????????????????? | | ??????????????????????????????????????????? | | ??????????????????????????????????????????? | | ??????????????????????????????????????????? | +----------------------------------------------------+ Best States ------------- Heat Dissipation 38 Energy Generation 12 Energy Capacity 265 Matter Stores 300 Matter Capacity 300 Sight Range 16 Terrain Scan Range 16 Terrain Scan Density 85 Armor Coverage 150 Evasion (%) 50 Offensive Hacking 10 Item Schematics ----------------- Beam Cannon | -9/Materials | Scanalyzed Robot Schematics ------------------ None Fabricated ------------ Nothing Alien Tech Used ----------------- None Achievements -------------- One Hack Too Far Challenges ------------ None Game ------ Seed SystemBombGenerator Manual? 0 Play Time 00:33:10 Cumulative 3.9 hours Start 2019.11.18 @ 16:43:52 End 2019.11.18 @ 17:15:56 Sessions 1 Manual Loads 0 Difficulty Rogue Special Mode None Game No. 6 Rogue 6 Adventurer 0 Explorer 0 Win Type - Total 0 Types 0/0/0/0/0/0/0 Lore% 10 Gallery% 6 Achievement% 7 Wizard Run 0 Options --------- ASCII 0 Keyboard 0 Movement Mouse Keybinds 0 Fullscreen 1 Font 18/SmallcapsGlow Map View 76x50 Tactical HUD 1 Map Filters NONE Filters NONE Steam 1 RUN: 6210aced-ff4a-4922-a1da-03aa1690a52b